bitfinex-derivatives/quotes_BTCF0:USTF0_20241120
["timestamp","ask_amount","ask_price","bid_price","bid_amount"]
[1732064681178,0.00011159,92184.0,92183.0,0.08252285]
[1732064682971,0.0051,92198.0,92183.0,0.42009685]
[1732064683165,0.00162757,92199.0,92197.0,0.054158]
[1732064683969,0.0001034,92198.0,92197.0,0.054158]
[1732064686172,0.0332,92213.0,92197.0,0.46634165]
[1732064686383,0.36168001,92221.0,92197.0,0.46634165]
[1732064686384,0.0051,92220.0,92218.0,0.054145]
[1732064686570,0.3608,92221.0,92219.0,0.10554165]
[1732064687077,0.0333,92226.0,92219.0,0.10554165]
[1732064687271,7.751e-05,92220.0,92219.0,0.054145]
[1732064687674,7.751e-05,92220.0,92219.0,0.15968665]
[1732064688281,7.751e-05,92220.0,92219.0,0.18794389]
[1732064688490,7.751e-05,92220.0,92219.0,0.29346389]
[1732064688679,7.751e-05,92220.0,92219.0,0.23931889]
[1732064690777,7.751e-05,92220.0,92219.0,0.27141889]
[1732064693483,7.751e-05,92220.0,92219.0,0.29346389]
[1732064695482,1e-08,92220.0,92219.0,0.29346389]
[1732064695678,0.0333,92231.0,92230.0,0.054139]
[1732064695878,0.0333,92231.0,92230.0,0.15968065]
[1732064696894,0.03342914,92231.0,92230.0,0.15968065]
[1732064697080,0.0059,92271.0,92231.0,0.32528]
[1732064697278,0.0059,92271.0,92230.0,0.57182165]
[1732064697279,0.22575941,92296.0,92261.0,0.05412]
[1732064697469,0.54936084,92303.0,92275.0,0.3608]
[1732064697470,0.25852275,92303.0,92275.0,0.3608]
[1732064697677,0.3608,92302.0,92296.0,0.10554165]
[1732064697881,0.3608,92302.0,92286.0,0.3608]
[1732064698180,0.3608,92302.0,92297.0,0.01032782]
[1732064698181,0.09536,92300.0,92297.0,0.01032782]
[1732064698487,0.00013186,92299.0,92288.0,9.561e-05]
[1732064698705,0.3608,92292.0,92289.0,0.00644637]
[1732064699987,0.3608,92292.0,92288.0,9.561e-05]
[1732064700191,0.3608,92292.0,92289.0,0.01651478]
[1732064700192,0.0323,92291.0,92289.0,0.01651478]
[1732064700377,0.0323,92291.0,92288.0,9.561e-05]
[1732064700579,0.0323,92291.0,92289.0,0.01016365]
[1732064700876,0.0323,92291.0,92288.0,9.561e-05]
[1732064702176,0.0308,92290.0,92288.0,9.561e-05]
[1732064702377,0.0626,92290.0,92288.0,9.561e-05]
[1732064702685,0.32508,92289.0,92288.0,9.561e-05]
[1732064703075,0.0626,92290.0,92288.0,9.561e-05]
[1732064703275,0.0626,92290.0,92288.0,0.10563726]
[1732064704286,0.0626,92290.0,92288.0,9.561e-05]
[1732064705486,0.32508,92289.0,92288.0,9.561e-05]
[1732064705986,0.32508,92289.0,92281.0,0.00155912]
[1732064706193,0.32508,92289.0,92267.0,0.10554165]
[1732064706194,0.3608,92282.0,92261.0,0.05412]
[1732064706378,0.3608,92282.0,92260.0,0.02166531]
[1732064706379,0.3608,92273.0,92263.0,0.06150176]
[1732064706577,0.3608,92273.0,92260.0,0.12720696]
[1732064706578,0.3608,92264.0,92260.0,0.02166531]
[1732064706891,0.0633,92263.0,92261.0,0.03443978]
[1732064707186,0.096,92263.0,92260.0,0.02166531]
[1732064707387,0.3608,92261.0,92250.0,0.00013735]
[1732064707592,0.3608,92251.0,92250.0,0.00013735]
[1732064707791,0.3608,92251.0,92250.0,0.038934]
[1732064708993,0.3608,92251.0,92250.0,0.01699323]
[1732064709191,0.07163653,92263.0,92250.0,0.01699323]
[1732064709397,0.39973653,92263.0,92256.0,0.10554165]
[1732064709587,0.39973653,92263.0,92260.0,0.054121]
[1732064710385,0.39973653,92263.0,92250.0,0.00013735]
[1732064710586,0.39973653,92263.0,92251.0,0.01677418]
[1732064710791,0.39973653,92263.0,92252.0,0.00645132]
[1732064710989,0.39973653,92263.0,92253.0,0.01677418]
[1732064711180,0.3608,92254.0,92250.0,0.00013735]
[1732064711389,0.3608,92254.0,92251.0,0.0166303]
[1732064711585,0.3608,92254.0,92250.0,0.00013735]
[1732064711586,0.3608,92252.0,92250.0,0.00013735]
[1732064711986,0.3252,92251.0,92249.0,0.0004]
[1732064712187,0.3252,92251.0,92220.0,0.02165291]
[1732064712188,0.10554165,92247.0,92226.0,0.054141]
[1732064712498,0.3608,92236.0,92227.0,0.01655344]
[1732064712701,0.0317,92235.0,92228.0,0.01655344]
[1732064712991,0.0317,92235.0,92226.0,0.054141]
[1732064712992,0.0317,92235.0,92229.0,0.01655344]
[1732064713191,0.0317,92235.0,92230.0,0.01655344]
[1732064713396,0.0317,92235.0,92226.0,0.054141]
[1732064713594,0.0317,92235.0,92227.0,0.01665375]
[1732064713895,0.0317,92235.0,92228.0,0.01665375]
[1732064714084,0.0317,92235.0,92229.0,0.01665375]
[1732064714287,0.0317,92235.0,92230.0,0.01665375]
[1732064714594,0.53396,92236.0,92234.0,0.15967765]
[1732064714895,0.53396,92236.0,92223.0,0.054143]
[1732064715079,0.53396,92236.0,92224.0,0.016561]
[1732064715278,0.53396,92236.0,92223.0,0.054143]
[1732064715279,0.0311,92235.0,92225.0,0.016561]
[1732064715484,0.0311,92235.0,92226.0,0.00637174]
[1732064715699,0.0311,92235.0,92227.0,0.01656728]
[1732064715888,0.0311,92235.0,92228.0,0.01656728]
[1732064716088,0.0311,92235.0,92229.0,0.01656728]
[1732064716288,0.0311,92235.0,92223.0,0.054143]
[1732064716608,0.0311,92235.0,92224.0,0.0165806]
[1732064716780,0.0311,92235.0,92225.0,0.0165806]
[1732064716781,0.16636,92234.0,92225.0,0.0165806]
[1732064716987,0.16636,92234.0,92226.0,0.0165806]
[1732064717289,0.16636,92234.0,92223.0,0.054143]
[1732064717290,0.3608,92227.0,92223.0,0.054143]
[1732064718094,0.3608,92227.0,92224.0,0.054142]
[1732064718794,0.1664,92226.0,92224.0,0.054142]
[1732064718989,0.1664,92226.0,92213.0,0.10554165]
[1732064719194,0.1664,92226.0,92209.0,0.36144]
[1732064719195,0.1664,92226.0,92215.0,0.05422561]
[1732064719404,0.3608,92219.0,92215.0,0.05422561]
[1732064720191,0.3608,92219.0,92215.0,0.07589158]
[1732064720495,0.3608,92219.0,92216.0,0.054146]
[1732064721894,0.3608,92219.0,92218.0,0.054146]
[1732064723099,0.3608,92219.0,92215.0,7.861e-05]
[1732064725491,0.3608,92219.0,92218.0,0.054146]
[1732064726200,0.52008,92219.0,92218.0,0.054146]
[1732064727103,0.49570354,92219.0,92218.0,0.054146]
[1732064727310,0.49570354,92219.0,92218.0,0.0644544]
[1732064727790,0.33642354,92219.0,92218.0,0.0644544]
[1732064728903,0.086836,92236.0,92218.0,0.0103084]
[1732064729207,0.086836,92236.0,92215.0,7.861e-05]
[1732064729208,0.15928,92234.0,92230.0,0.054138]
[1732064729505,0.0327,92236.0,92233.0,0.054137]
[1732064729701,0.32524,92234.0,92233.0,0.054137]
[1732064729901,0.15928,92234.0,92233.0,0.054137]
[1732064730207,0.48456,92234.0,92233.0,0.054137]
[1732064730390,0.3608,92237.0,92227.0,0.10554165]
[1732064730591,0.3608,92237.0,92236.0,0.054135]
[1732064731102,0.52008,92237.0,92236.0,0.054135]
[1732064732009,0.3608,92237.0,92236.0,0.054135]
[1732064732304,0.52008,92237.0,92236.0,0.054135]
[1732064733313,0.3608,92237.0,92236.0,0.054135]
[1732064733608,0.52008,92237.0,92236.0,0.054135]
[1732064733905,0.84532,92237.0,92229.0,0.0304]
[1732064734118,0.10554165,92230.0,92217.0,0.054146]
[1732064734308,0.10554165,92230.0,92218.0,0.01673594]
[1732064734309,0.3608,92219.0,92218.0,0.01673594]
[1732064734517,0.52008,92219.0,92218.0,0.01673594]
[1732064737816,0.48622293,92219.0,92217.0,0.054146]
[1732064738111,0.48622293,92219.0,92218.0,0.0063899]
[1732064738618,0.48622293,92219.0,92218.0,0.00626081]
[1732064739109,0.48622293,92219.0,92217.0,0.054146]
[1732064739314,0.32694293,92219.0,92217.0,0.054146]
[1732064739510,0.15276,92218.0,92217.0,0.054146]
[1732064743111,0.15276,92218.0,92215.0,0.03137861]
[1732064743904,0.206906,92218.0,92215.0,0.03137861]
[1732064744315,0.054147,92217.0,92215.0,0.03137861]
[1732064744514,0.054147,92217.0,92215.0,7.861e-05]
[1732064744515,0.10554165,92216.0,92215.0,7.861e-05]
[1732064746422,0.46634165,92216.0,92215.0,7.861e-05]
[1732064746644,0.46634165,92216.0,92201.0,0.19270491]
[1732064746645,0.79179828,92216.0,92201.0,0.19270491]
[1732064746923,0.054158,92197.0,92196.0,0.0307]
[1732064747110,0.200438,92197.0,92196.0,0.05984887]
[1732064747918,0.200438,92197.0,92196.0,0.0307]
[1732064748422,0.200438,92197.0,92187.0,0.0302]
[1732064748423,0.14628,92197.0,92187.0,0.0302]
[1732064748621,0.3608,92193.0,92187.0,0.0302]
[1732064748820,0.054163,92188.0,92187.0,0.0302]
[1732064750830,0.054163,92188.0,92187.0,0.05871581]
[1732064754327,0.054163,92188.0,92187.0,0.0302]
[1732064760341,0.4998,92193.0,92191.0,0.054161]
[1732064760641,0.3608,92193.0,92191.0,0.054161]
[1732064760826,0.054163,92189.0,92187.0,0.0302]
[1732064761835,0.3608,92193.0,92187.0,0.0302]
[1732064762029,0.3608,92193.0,92190.0,0.054162]
[1732064762228,0.414961,92193.0,92191.0,0.054161]
[1732064763337,0.3608,92193.0,92191.0,0.054161]
[1732064764238,0.414961,92193.0,92191.0,0.054161]
[1732064764532,0.414961,92193.0,92192.0,0.00610262]
[1732064764732,0.054163,92188.0,92187.0,0.0302]
[1732064764933,0.054163,92188.0,92187.0,0.03630306]
[1732064765333,0.3608,92193.0,92191.0,0.054161]
[1732064767636,0.3608,92193.0,92187.0,0.0302]
[1732064767851,0.054163,92189.0,92187.0,0.0302]
[1732064768034,0.054166,92184.0,92181.0,0.084867]
[1732064768548,0.054166,92184.0,92182.0,0.054166]
[1732064769038,0.054167,92181.0,92180.0,8.592e-05]
[1732064769242,0.193167,92181.0,92180.0,8.592e-05]
[1732064775545,0.139,92181.0,92180.0,8.592e-05]
[1732064776343,0.3608,92183.0,92181.0,0.054167]
[1732064776655,0.3608,92191.0,92190.0,0.054162]
[1732064777344,0.00056001,92201.0,92190.0,0.054162]
[1732064777548,0.13232,92207.0,92199.0,0.414957]
[1732064777740,0.3608,92211.0,92199.0,0.414957]
[1732064778746,0.41495,92211.0,92199.0,0.414957]
[1732064780935,0.41495,92211.0,92199.0,0.44388262]
[1732064781748,0.3608,92211.0,92199.0,0.38972562]
[1732064781955,0.3608,92211.0,92200.0,0.054156]
[1732064782251,0.3608,92211.0,92207.0,0.054152]
[1732064782552,0.3608,92211.0,92200.0,0.0317]
[1732064782846,0.3608,92211.0,92209.0,0.054151]
[1732064783644,0.3608,92211.0,92210.0,0.10554165]
[1732064784353,0.00013663,92216.0,92214.0,0.054148]
[1732064786347,0.00013663,92216.0,92215.0,0.00609309]
[1732064787451,0.00013663,92216.0,92215.0,0.35842]
[1732064787642,0.13711601,92224.0,92223.0,0.10554165]
[1732064788157,0.13711601,92224.0,92223.0,0.15968465]
[1732064788451,0.3608,92237.0,92229.0,0.054139]
[1732064788854,0.00013973,92230.0,92229.0,0.054139]
[1732064789053,0.00013973,92230.0,92229.0,0.0828556]
[1732064791698,0.48855346,92260.0,92229.0,0.5650799]
[1732064791844,0.48911347,92260.0,92257.0,0.054123]
[1732064792045,0.00056001,92260.0,92257.0,0.054123]
[1732064792253,0.054112,92276.0,92256.0,0.10554165]
[1732064792445,0.054112,92276.0,92266.0,0.054118]
[1732064792655,0.00175139,92267.0,92266.0,0.054118]
[1732064792859,0.00175139,92267.0,92266.0,0.00606201]
[1732064793759,0.05412,92262.0,92254.0,0.0051]
[1732064793958,0.3608,92261.0,92255.0,0.0060885]
[1732064794169,0.3608,92261.0,92254.0,0.02863003]
[1732064794170,0.3608,92261.0,92256.0,0.0060885]
[1732064794353,0.3608,92261.0,92257.0,0.0060885]
[1732064794660,0.3608,92261.0,92254.0,0.02863003]
[1732064794661,0.3608,92261.0,92258.0,0.0060885]
[1732064794867,0.3608,92261.0,92259.0,0.0060885]
[1732064795061,0.3608,92261.0,92260.0,0.0060885]
[1732064795363,0.05412,92262.0,92260.0,0.0060885]
[1732064795563,0.10554165,92263.0,92261.0,0.00150042]
[1732064795860,0.12552,92264.0,92260.0,0.054121]
[1732064796661,0.00175139,92267.0,92261.0,0.05412]
[1732064796850,0.12552,92266.0,92261.0,0.05412]
[1732064797049,0.054119,92264.0,92261.0,0.05412]
[1732064797349,0.054119,92264.0,92253.0,0.02950055]
[1732064797350,0.05412,92262.0,92253.0,0.02950055]
[1732064797551,0.05412,92262.0,92258.0,0.054122]
[1732064798759,0.41492,92262.0,92258.0,0.054122]
[1732064798963,0.41492,92262.0,92253.0,0.02950055]
[1732064799257,0.3608,92262.0,92260.0,0.054121]
[1732064801559,0.3608,92262.0,92253.0,0.02950055]
[1732064801560,0.054125,92254.0,92253.0,0.02950055]
[1732064801763,0.52046665,92254.0,92253.0,0.00013148]
[1732064801960,0.0321,92261.0,92253.0,0.05425648]
[1732064802161,0.3608,92254.0,92253.0,0.05425648]
[1732064805669,0.3608,92262.0,92261.0,0.05412]
[1732064805869,0.05424199,92267.0,92263.0,0.054119]
[1732064806058,0.05424199,92267.0,92253.0,0.00013148]
[1732064806059,0.05424199,92267.0,92264.0,0.054119]
[1732064807568,0.05424199,92267.0,92265.0,0.054118]
[1732064807772,0.00012499,92267.0,92265.0,0.054118]
[1732064808963,0.00012499,92267.0,92259.0,0.054121]
[1732064808964,0.054121,92261.0,92259.0,0.054121]
[1732064809175,0.414921,92261.0,92259.0,0.054121]
[1732064814468,0.054121,92261.0,92259.0,0.054121]
[1732064814771,0.3608,92263.0,92261.0,0.05412]
[1732064817266,0.12576445,92262.0,92261.0,0.05412]
[1732064818678,0.11944,92264.0,92263.0,0.054119]
[1732064820668,0.11944,92264.0,92253.0,0.00013148]
[1732064820872,0.3608,92256.0,92254.0,0.054124]
[1732064821072,0.3608,92256.0,92253.0,0.00013148]
[1732064821073,0.0316,92255.0,92253.0,0.00013148]
[1732064821273,0.444024,92255.0,92253.0,0.00013148]
[1732064821479,0.45127981,92254.0,92253.0,0.00013148]
[1732064821691,0.24551981,92254.0,92253.0,0.00013148]
[1732064822572,0.11944,92254.0,92253.0,0.00013148]
[1732064822974,0.44464,92254.0,92253.0,0.00013148]
[1732064823176,0.22498165,92254.0,92253.0,0.00013148]
[1732064824796,0.67676556,92254.0,92253.0,0.00013148]
[1732064825172,0.55018165,92254.0,92253.0,0.00013148]
[1732064825377,1.03755058,92254.0,92253.0,0.00013148]
[1732064825580,0.93200893,92254.0,92253.0,3.159e-05]
[1732064827387,1.33755058,92254.0,92253.0,3.159e-05]
[1732064827586,0.054125,92253.0,92243.0,0.0051]
[1732064827884,0.054134,92238.0,92237.0,0.0051]
[1732064828089,0.27911565,92238.0,92231.0,0.059237]
[1732064828388,0.46634165,92232.0,92224.0,0.059242]
[1732064828589,0.10554165,92226.0,92224.0,0.054142]
[1732064828891,0.10554165,92226.0,92218.0,0.0051]
[1732064828892,0.054142,92225.0,92219.0,0.054145]
[1732064829090,0.22498165,92226.0,92219.0,0.054145]
[1732064829091,0.46634165,92220.0,92219.0,0.054145]
[1732064829297,0.46634165,92220.0,92211.0,0.0051]
[1732064829298,0.52048665,92220.0,92213.0,0.054148]
[1732064830588,0.054145,92219.0,92213.0,0.054148]
[1732064830885,0.10554165,92214.0,92213.0,0.054148]
[1732064831092,0.10554165,92214.0,92204.0,0.0051]
[1732064831093,0.05415,92211.0,92204.0,0.0051]
[1732064831287,0.05415,92211.0,92194.0,0.0315]
[1732064831288,0.3926,92210.0,92199.0,0.059257]
[1732064831676,0.71796,92210.0,92199.0,0.0051]
[1732064832183,0.054156,92201.0,92199.0,0.0051]
[1732064832494,0.71796,92210.0,92193.0,0.05926]
[1732064832495,0.054157,92199.0,92193.0,0.05926]
[1732064832685,0.11348,92198.0,92194.0,0.054159]
[1732064834585,0.11348,92198.0,92196.0,0.054158]
[1732064835176,0.3608,92200.0,92192.0,0.10554165]
[1732064835383,0.3608,92200.0,92199.0,0.054157]
[1732064838396,0.50672001,92210.0,92205.0,0.054153]
[1732064838696,0.50672001,92210.0,92207.0,0.054152]
[1732064838697,0.50612,92210.0,92207.0,0.054152]
[1732064840902,0.50612,92210.0,92197.0,0.0051]
[1732064840903,0.054156,92200.0,92197.0,0.0051]
[1732064841091,0.3608,92198.0,92187.0,0.0051]
[1732064841282,0.3608,92198.0,92183.0,0.0318]
[1732064841477,0.3608,92199.0,92183.0,0.0318]
[1732064841886,0.3608,92199.0,92193.0,0.05416]
[1732064842391,0.414957,92199.0,92193.0,0.05416]
[1732064843777,0.11352,92198.0,92193.0,0.05416]
[1732064844393,0.11352,92198.0,92195.0,0.054159]
[1732064844591,0.11352,92198.0,92196.0,0.054158]
[1732064854604,0.3608,92207.0,92189.0,0.41143094]
[1732064854810,0.36298739,92217.0,92216.0,0.054147]
[1732064855101,0.00162738,92217.0,92216.0,0.054147]
[1732064855295,7.634e-05,92218.0,92216.0,0.054147]
[1732064855599,7.634e-05,92218.0,92211.0,0.054149]
[1732064855600,0.054148,92215.0,92211.0,0.054149]
[1732064856190,0.10554165,92212.0,92201.0,0.3608]
[1732064856389,0.10554165,92204.0,92201.0,0.3608]
[1732064856602,0.054155,92203.0,92201.0,0.3608]
[1732064857398,0.054155,92203.0,92198.0,0.054157]
[1732064857788,0.054156,92201.0,92198.0,0.054157]
[1732064858189,0.13734165,92204.0,92198.0,0.054157]
[1732064858190,0.054157,92200.0,92198.0,0.054157]
[1732064862606,0.054159,92196.0,92191.0,0.054161]
[1732064862800,0.054159,92195.0,92191.0,0.054161]
[1732064863000,0.054159,92195.0,92192.0,0.054161]
[1732064863197,0.054159,92195.0,92193.0,0.05416]
[1732064868415,0.054156,92200.0,92195.0,0.054159]
[1732064868611,0.13189949,92199.0,92195.0,0.054159]
[1732064868811,0.054156,92200.0,92195.0,0.054159]
[1732064869112,0.054157,92199.0,92195.0,0.054159]
[1732064869611,0.3608,92201.0,92189.0,0.38971061]
[1732064869806,0.22715479,92213.0,92199.0,0.054157]
[1732064870008,0.13028445,92213.0,92212.0,0.054149]
[1732064870214,0.23812202,92213.0,92212.0,0.054149]
[1732064870411,0.10784,92213.0,92212.0,0.054149]
[1732064871003,0.10784,92214.0,92203.0,0.10554165]
[1732064871403,0.10784,92214.0,92211.0,0.054149]
[1732064872008,0.10784,92214.0,92203.0,0.13429161]
[1732064872215,0.10784,92214.0,92213.0,0.054149]
[1732064872705,0.054148,92215.0,92213.0,0.054149]
[1732064872906,7.634e-05,92218.0,92216.0,0.054146]
[1732064873126,7.634e-05,92218.0,92217.0,0.10554165]
[1732064873417,7.634e-05,92218.0,92217.0,0.46634165]
[1732064874817,7.634e-05,92218.0,92217.0,0.3608]
[1732064875026,7.634e-05,92218.0,92217.0,0.55494951]
[1732064875208,7.634e-05,92218.0,92217.0,0.3608]
[1732064875718,7.634e-05,92218.0,92216.0,0.08309441]
[1732064875719,0.05422234,92218.0,92216.0,0.08309441]
[1732064876022,7.634e-05,92218.0,92201.0,0.19924951]
[1732064876318,0.10554165,92214.0,92201.0,0.0051]
[1732064876523,0.10554165,92214.0,92202.0,0.02167019]
[1732064876818,0.054149,92213.0,92210.0,0.05415]
[1732064877321,0.10554165,92214.0,92212.0,0.054149]
[1732064877519,0.054147,92216.0,92214.0,0.054148]
[1732064879617,0.10784,92217.0,92216.0,0.054147]
[1732064880524,0.14074,92217.0,92216.0,0.054147]
[1732064883320,0.14074,92217.0,92210.0,0.05415]
[1732064883531,0.054149,92212.0,92210.0,0.05415]
[1732064884323,0.054149,92212.0,92208.0,0.3608]
[1732064884324,0.14074,92217.0,92208.0,0.3608]
[1732064884513,0.10554165,92215.0,92201.0,0.19414951]
[1732064884717,0.14074,92217.0,92200.0,0.0051]
[1732064884718,0.054155,92202.0,92200.0,0.0051]
[1732064884911,0.054155,92202.0,92199.0,0.054157]
[1732064886027,0.054159,92195.0,92191.0,0.36136]
[1732064886324,0.054159,92195.0,92194.0,0.05416]
[1732064887522,0.054157,92200.0,92197.0,0.054158]
[1732064887729,0.054157,92200.0,92198.0,0.054157]
[1732064890620,0.054157,92200.0,92191.0,0.3608]
[1732064890621,0.054161,92193.0,92191.0,0.3608]
[1732064890824,0.10554165,92204.0,92185.0,0.054165]
[1732064890825,0.054164,92188.0,92185.0,0.054165]
[1732064891126,0.21326165,92192.0,92185.0,0.054165]
[1732064891632,0.3608,92186.0,92181.0,0.02858754]
[1732064891828,0.3608,92186.0,92179.0,8.227e-05]
[1732064891829,0.054168,92181.0,92179.0,8.227e-05]
[1732064892031,0.10772,92180.0,92179.0,8.227e-05]
[1732064894338,0.3608,92186.0,92179.0,8.227e-05]
[1732064894536,0.414958,92198.0,92195.0,0.054159]
[1732064894836,0.10776,92197.0,92195.0,0.054159]
[1732064895434,0.161918,92197.0,92195.0,0.054159]
[1732064896434,0.0307,92199.0,92198.0,0.054157]
[1732064896637,0.13846,92199.0,92198.0,0.054157]
[1732064897539,0.054155,92202.0,92186.0,0.0373]
[1732064897540,0.054155,92202.0,92192.0,0.1348763]
[1732064897830,0.10776,92206.0,92205.0,0.054153]
[1732064899349,0.10776,92211.0,92210.0,0.05415]
[1732064899542,0.00162739,92214.0,92212.0,0.054149]
[1732064899739,0.10776,92213.0,92212.0,0.054149]
[1732064901047,0.054153,92206.0,92204.0,0.054154]
[1732064903238,0.054149,92212.0,92207.0,0.054152]
[1732064903444,0.10776,92213.0,92211.0,0.054149]
[1732064904258,0.161909,92213.0,92211.0,0.054149]
[1732064904459,0.161909,92213.0,92200.0,0.0051]
[1732064904460,0.054153,92206.0,92204.0,0.054154]
[1732064906560,0.054155,92203.0,92196.0,0.3608]
[1732064906757,0.054155,92203.0,92201.0,0.054155]
[1732064907163,0.10772,92202.0,92196.0,0.3608]
[1732064907344,0.054156,92201.0,92196.0,0.3608]
[1732064907544,0.054156,92201.0,92199.0,0.054157]
[1732064910548,0.054156,92201.0,92196.0,0.3608]
[1732064910549,0.10772,92202.0,92201.0,0.054156]
[1732064910952,0.054153,92206.0,92203.0,0.054154]
[1732064911755,0.054154,92205.0,92203.0,0.054154]
[1732064916063,0.3608,92207.0,92206.0,0.054153]
[1732064917159,0.10772,92212.0,92211.0,0.05415]
[1732064918161,0.3608,92217.0,92216.0,0.054147]
[1732064918363,7.634e-05,92218.0,92216.0,0.054147]
[1732064918566,7.634e-05,92218.0,92217.0,0.0309]
[1732064920663,7.634e-05,92218.0,92216.0,0.054147]
[1732064920860,0.05422234,92218.0,92216.0,0.054147]
[1732064921073,0.3608,92217.0,92209.0,0.19408212]
[1732064921374,0.054149,92213.0,92212.0,0.054149]
[1732064922265,0.054156,92200.0,92199.0,0.0051]
[1732064922465,0.054156,92200.0,92190.0,0.2728]
[1732064922666,0.3608,92201.0,92200.0,0.054156]
[1732064923266,0.10756,92202.0,92200.0,0.054156]
[1732064925981,0.10554165,92215.0,92194.0,0.02167233]
[1732064926176,0.22658527,92220.0,92211.0,0.05415]
[1732064926177,0.10756,92212.0,92211.0,0.05415]
[1732064926484,0.10756,92212.0,92201.0,0.3608]
[1732064926671,0.10756,92212.0,92202.0,0.0641]
[1732064927177,0.10756,92212.0,92211.0,0.05415]
[1732064927778,0.05422234,92218.0,92211.0,0.05415]
[1732064927983,0.10756,92212.0,92211.0,0.05415]
[1732064929571,0.054152,92208.0,92207.0,0.054152]
[1732064936887,0.10756,92209.0,92207.0,0.054152]
[1732064937595,0.0308,92217.0,92205.0,0.19408212]
[1732064937783,0.46836,92213.0,92212.0,0.054149]
[1732064938011,0.0308,92217.0,92216.0,0.054147]
[1732064938292,0.10756,92217.0,92216.0,0.054147]
[1732064941492,0.10756,92217.0,92209.0,0.3608]
[1732064941493,0.21310165,92217.0,92209.0,0.3608]
[1732064941699,0.054149,92213.0,92212.0,0.054149]
[1732064942480,0.36087634,92218.0,92209.0,0.39010516]
[1732064942701,0.10752,92217.0,92216.0,0.054147]
[1732064943884,0.10752,92217.0,92209.0,0.39010516]
[1732064944085,0.054152,92207.0,92206.0,0.054153]
[1732064945796,0.064,92209.0,92201.0,0.3608]
[1732064946012,0.033,92209.0,92208.0,0.054152]
[1732064947998,0.087151,92209.0,92208.0,0.054152]
[1732064951085,0.054153,92206.0,92204.0,0.054154]
[1732064951282,0.054153,92206.0,92204.0,0.24823612]
[1732064951798,0.054153,92206.0,92205.0,0.19408212]
[1732064952000,0.054153,92206.0,92204.0,0.24823612]
[1732064952900,0.054153,92206.0,92205.0,0.19408212]
[1732064953290,0.033,92209.0,92205.0,0.19408212]
[1732064953490,0.033,92209.0,92208.0,0.054152]
[1732064955492,0.36143635,92218.0,92214.0,0.054148]
[1732064955693,7.634e-05,92218.0,92217.0,0.054146]
[1732064957701,7.634e-05,92218.0,92217.0,0.0826031]
[1732064958003,7.634e-05,92218.0,92217.0,0.2773708]
[1732064958391,7.634e-05,92218.0,92217.0,0.0826031]
[1732064958888,7.634e-05,92218.0,92217.0,0.2773708]
[1732064959305,7.634e-05,92218.0,92217.0,0.0826031]
[1732064959607,7.634e-05,92218.0,92217.0,0.2773708]
[1732064960798,7.634e-05,92218.0,92217.0,0.0826031]
[1732064967993,7.634e-05,92218.0,92209.0,0.08696721]
[1732064967994,7.634e-05,92218.0,92211.0,0.19466463]
[1732064968191,0.054149,92213.0,92211.0,0.05415]
[1732064968798,0.054149,92213.0,92209.0,0.02166721]
[1732064968799,0.032,92217.0,92214.0,0.054148]
[1732064968996,0.054149,92213.0,92211.0,0.02842377]
[1732064969202,0.13754165,92217.0,92208.0,0.054151]
[1732064969510,0.05415,92212.0,92208.0,0.054151]
[1732064969693,0.05415,92212.0,92201.0,0.55606463]
[1732064969892,0.13754165,92217.0,92209.0,0.054151]
[1732064970106,0.05415,92211.0,92209.0,0.054151]
[1732064975408,0.13754165,92217.0,92205.0,0.22367223]
[1732064975605,0.054153,92207.0,92205.0,0.19466463]
[1732064975919,0.054153,92207.0,92204.0,0.02166938]
[1732064976106,0.054153,92207.0,92204.0,0.07582338]
[1732064976410,0.054153,92205.0,92204.0,0.054154]
[1732064976716,0.054153,92205.0,92196.0,0.0644]
[1732064976717,0.10554165,92210.0,92200.0,0.054156]
[1732064976904,0.054155,92202.0,92200.0,0.054156]
[1732064978608,0.054153,92207.0,92202.0,0.054155]
[1732064978809,0.054153,92207.0,92203.0,0.054154]
[1732064979007,0.3932,92211.0,92203.0,0.054154]
[1732064979201,0.054153,92206.0,92203.0,0.054154]
[1732064979511,0.3932,92211.0,92203.0,0.054154]
[1732064979512,0.054154,92205.0,92203.0,0.054154]
[1732064984410,0.054156,92201.0,92198.0,0.054157]
[1732064985003,0.054156,92201.0,92198.0,0.054057]
[1732064985618,0.054156,92201.0,92199.0,0.054157]
[1732064987018,0.054157,92198.0,92197.0,0.38975501]
[1732064987220,0.054157,92198.0,92197.0,0.38919501]
[1732064990226,0.06664521,92204.0,92197.0,0.38919501]
[1732064990227,0.06664521,92204.0,92202.0,0.054155]
[1732064990424,0.12079921,92204.0,92202.0,0.054155]
[1732064993818,0.06664521,92209.0,92206.0,0.054153]
[1732064994223,0.06664521,92209.0,92200.0,0.19455182]
[1732064994520,0.054155,92203.0,92201.0,0.24870782]
[1732064995622,0.054155,92203.0,92202.0,0.19455182]
[1732064996422,0.054155,92203.0,92201.0,0.054156]
[1732064996830,0.054155,92203.0,92202.0,0.19476247]
[1732064997015,0.06664521,92209.0,92197.0,0.38983501]
[1732064997219,0.06664521,92209.0,92205.0,0.054153]
[1732064997220,0.054152,92207.0,92205.0,0.054153]
[1732065000730,0.054156,92200.0,92198.0,0.054157]
[1732065002713,0.054157,92198.0,92197.0,0.38975501]
[1732065002918,0.054157,92198.0,92197.0,0.3608]
[1732065003120,0.054157,92198.0,92197.0,0.414958]
[1732065003516,0.054157,92198.0,92191.0,0.19476545]
[1732065003517,0.05416,92194.0,92190.0,0.19476545]
[1732065003722,0.06664521,92192.0,92191.0,0.054162]
[1732065003941,0.12080621,92192.0,92191.0,0.054162]
[1732065004637,0.054161,92192.0,92191.0,0.054162]
[1732065006820,0.06664521,92196.0,92189.0,0.19476545]
[1732065006821,0.3608,92193.0,92189.0,0.19476545]
[1732065007021,0.06664521,92190.0,92183.0,0.19476545]
[1732065007233,0.06664521,92190.0,92180.0,0.054168]
[1732065007234,0.42744521,92184.0,92180.0,0.054168]
[1732065007420,0.054166,92183.0,92180.0,0.054168]
[1732065008839,0.054166,92183.0,92181.0,0.02974062]
[1732065009022,0.054166,92183.0,92181.0,0.00162703]